Cogmind - Beta 15 @@@ ROGUE MODE // 2025.09.03 @ 17:30:30 Player: Gumbus Result: Self-destructed Performance ------------- Evolutions (1) 500 Regions Visited (4) 800 Robots Destroyed (25) 125 Value Destroyed (780) 780 Prototype IDs (1) 20 Alien Tech Used (0) 0 Bonus (0) 0 TOTAL SCORE: 2225 Bonus ------- None Cogmind --------- Core Integrity 97/400 Matter 262/300 Energy 99/100 System Corruption 3% Temperature Cool (6) Movement Core (50) Location -9/Storage Parts ------- > --- POWER (1) -------- (None) > --- PROPULSION (3) --- (None) > --- UTILITY (3) ------ Targeting Computer > --- WEAPON (2) ------- (None) > --- INVENTORY (5) ---- Heavy Ion Engine Heat Sink Heat Sink Peak State ------------ > --- POWER ------------ Heavy Ion Engine > --- PROPULSION ------- Armored Wheel > --- UTILITY ---------- Targeting Computer Drone Bay Drone Bay > --- WEAPON ----------- Spread Laser Grenade Launcher > --- INVENTORY -------- Heavy Ion Engine Heat Sink Heat Sink Drone Bay [Rating: 20] Favorites ----------- Power Ion Engine Engine Ion Engine Propulsion Light Treads Treads Light Treads Wheel Wheel Hover Unit Hover Unit Utility Heat Sink Device Heat Sink Storage Small Storage Unit Processor Targeting Computer Protection Propulsion Shielding Weapon Spread Laser Energy Gun Spread Laser Launcher Grenade Launcher Build | -11 -10 -10 -9 -9 ------- Run | Yrd Mat Min Mat Sto Slots Evolved 2 | . . . 2 . Power . | . . . . . Propulsion 1 | . . . 1 . Utility 1 | . . . 1 . Weapon . | . . . . . Parts Attached 33 | 5 13 . 8 7 Power 4 | 1 1 . 2 . Engine 4 | 1 1 . 2 . Core . | . . . . . Reactor . | . . . . . Propulsion 9 | 2 3 . 2 2 Treads 3 | 2 . . 1 . Leg . | . . . . . Wheel 4 | . 3 . 1 . Hover 2 | . . . . 2 Flight . | . . . . . Utility 12 | 1 4 . 3 4 Device 7 | . 2 . 2 3 Storage 1 | 1 . . . . Processor 2 | . 1 . . 1 Hackware . | . . . . . Protection 2 | . 1 . 1 . Artifact . | . . . . . Weapon 8 | 1 5 . 1 1 Energy Gun 6 | 1 4 . . 1 Energy Cannon . | . . . . . Ballistic Gun . | . . . . . Ballistic Cannon . | . . . . . Launcher 2 | . 1 . 1 . Special Weapon . | . . . . . Impact Weapon . | . . . . . Slashing Weapon . | . . . . . Piercing Weapon . | . . . . . Special Melee Weapon . | . . . . . Unidentified Prototypes 1 | . . . 1 . Parts Lost 12 | . . . 4 8 Power 1 | . . . . 1 Propulsion 3 | . . . 1 2 Utility 5 | . . . 2 3 Weapon 3 | . . . 1 2 Highest Loss Streak 8 | . . . 2 8 To Critical Strikes . | . . . . . Average Backups 3 | 1 3 5 4 3 Power 1 | . 1 1 1 1 Propulsion . | . . . . . Utility 2 | . . 4 3 2 Weapon . | . . . . . Tool/Special . | . . . . . Unused Backups 7 | . 1 . 3 3 Power 5 | . 1 . 3 1 Propulsion . | . . . . . Utility 2 | . . . . 2 Weapon . | . . . . . Tool/Special . | . . . . . Average Slot Usage (%) 80 | . 88 100 68 68 Engine 12 | . 14 14 11 10 Treads 7 | . 14 . 5 . Wheel 11 | . 9 28 8 7 Device 12 | . 8 14 15 18 Storage 2 | . 5 . . . Processor 7 | . 6 14 3 11 Protection 2 | . 4 . 4 . Energy Gun 20 | . 25 28 18 9 Launcher 1 | . . . . 9 Peak Build Rating 20 | 5 10 10 12 20 Average Rating 9 | 4 6 10 9 15 On Entrance 7 | . 5 10 10 11 Naked Turns . | . . . . . Heaviest Build 26 | 11 13 12 19 26 Greatest Support 40 | 40 40 26 26 12 Greatest Overweight (x) 5 | . 1 . 1 5 Average Overweight (x) . | . . . . 1 Largest Inventory Capacity 8 | 8 8 5 5 5 Average Capacity 5 | 7 6 5 5 5 Most Carried 5 | 3 5 5 5 5 Average Carried 3 | 1 3 5 4 3 Final Capacity 8 | 8 5 5 5 5 Final Carried 5 | 1 5 5 5 3 Class Distribution -------------------- 89% | Mutant 10% | Scavenger-Mutant Dominant Class ---------------- Mutant | -10/Materials Mutant | -10/Mines Mutant | -9/Materials Mutant | -9/Storage Resources | -11 -10 -10 -9 -9 ----------- Run | Yrd Mat Min Mat Sto Matter Collected 548 | 201 139 . 113 95 Remotely . | . . . . . Salvage Created 724 | . 255 . 331 138 Parts 54 | . 19 . 24 11 Haulers Intercepted . | . . . . . Recyclers Shooed . | . . . . . Parts Field Recycled . | . . . . . Retrieved Matter . | . . . . . Parts Self-Destructed . | . . . . . Prevented . | . . . . . Kills | -11 -10 -10 -9 -9 ------- Run | Yrd Mat Min Mat Sto Combat Hostiles Destroyed 22 | . 8 . 10 4 Guns 18 | . 8 . 10 . AOE 4 | . . . . 4 Classes Destroyed 6 | . 2 . 3 1 Worker 1 | . . . . 1 Watcher 2 | . . . 1 1 Swarmer 3 | . 3 . . . Grunt 16 | . 5 . 7 4 Brawler 2 | . . . 2 . Sentry 1 | . . . 1 . Best Kill Streak 6 | . 4 . 6 4 Combat Bots Only 6 | . 4 . 6 3 Max Kills in Single Turn 2 | . 1 . 1 2 Gunslinging . | . . . . . Exploded 2 | . . . . 2 Melee . | . . . . . Uniques/NPCs Destroyed . | . . . . . Combat | -11 -10 -10 -9 -9 -------- Run | Yrd Mat Min Mat Sto Hostile Shots Fired 227 | . 65 . 47 115 Missed 69 | . 17 . 10 42 Hits 158 | . 48 . 37 73 Melee 4 | . . . 4 . Projectile 154 | . 48 . 33 73 Critical Strikes 4 | . 4 . . . Damage Taken 1911 | . 560 . 466 885 Core 380 | . 77 . 77 226 Absorbed by Shields . | . . . . . Redirected to Shielding 32 | . 32 . . . Regen/Repaired (Parts) 18 | . . . . 18 Core Remaining (%) 84 | 100 . 69 . . Volleys Fired 67 | . 28 . 31 8 Largest 2 | . 2 . 2 2 Hottest 130 | . 130 . 130 95 Shots Fired 107 | . 44 . 47 16 Gun 99 | . 44 . 47 8 Cannon . | . . . . . Launcher 8 | . . . . 8 Special . | . . . . . Kinetic . | . . . . . Thermal 99 | . 44 . 47 8 Explosive 8 | . . . . 8 Electromagnetic . | . . . . . Robot Hit Streak 14 | . 6 . 14 6 Robot Miss Streak 7 | . 7 . 6 2 Penetration Max . | . . . . . Secondary Targets . | . . . . . Shots Hit Robots 85 | . 28 . 44 13 Core Hits 84 | . 15 . 53 16 Critical Kills . | . . . . . Critical Parts Destroyed . | . . . . . Critical Strikes . | . . . . . Melee Attacks . | . . . . . Impact . | . . . . . Slashing . | . . . . . Piercing . | . . . . . Sneak Attacks . | . . . . . Combat Hostiles . | . . . . . Follow-up Attacks . | . . . . . Damage Inflicted 1336 | . 323 . 574 439 Guns 973 | . 323 . 572 78 Cannons . | . . . . . Explosions 357 | . . . . 357 Melee . | . . . . . Ramming 6 | . . . 2 4 Kinetic . | . . . . . Thermal 973 | . 323 . 572 78 Explosive 357 | . . . . 357 Electromagnetic . | . . . . . Impact . | . . . . . Slashing . | . . . . . Piercing . | . . . . . Highest Corruption 3 | . . . 3 3 Average Corruption 3 | . . . 3 3 Corruption Purged . | . . . . . Corruption Blocked . | . . . . . Effects 6 | . . . 5 1 Message Errors 3 | . . . 2 1 Matter Fused 1 | . . . 1 . Parts Rejected 1 | . . . 1 . Data Loss (minor) 1 | . . . 1 . Overload Shots . | . . . . . Overflow Damage . | . . . . . Projectiles . | . . . . . Explosions . | . . . . . Melee . | . . . . . Knockbacks . | . . . . . Impact . | . . . . . Kinetic . | . . . . . Secondary . | . . . . . Self-Inflicted Damage 28 | . . . . 28 Shots 2 | . . . . 2 Rammed 3 | . . . 1 2 Targets Rammed 3 | . . . 1 2 Kicked . | . . . . . Crushed . | . . . . . Highest Temperature 592 | . 108 . 592 43 Average Temperature 126 | . 32 . 213 20 Received Heat Transfer 822 | . 294 . 204 324 Effects 18 | . . . 18 . Shutdowns 3 | . . . 3 . Energy Bleed 1 | . . . 1 . Interference 3 | . . . 3 . Damage (minor) 2 | . . . 2 . Damage (major) 9 | . . . 9 . Siege Activations . | . . . . . Martial Activations . | . . . . . Shielding Activations . | . . . . . Robots Disrupted . | . . . . . Combat Hostiles . | . . . . . Robots Corrupted . | . . . . . Combat Hostiles . | . . . . . Parts Fried . | . . . . . Impact Corruptions . | . . . . . Robots Melted . | . . . . . Combat Hostiles . | . . . . . Parts Melted 1 | . . . 1 . Heat Transferred 1545 | . 705 . 700 140 Parts Sabotaged . | . . . . . Parts Stolen . | . . . . . Parts Stripped . | . . . . . Power Chain Reactions . | . . . . . Alert | -11 -10 -10 -9 -9 ------- Run | Yrd Mat Min Mat Sto Maximum Alert Level . | . . . . . Low Security (%) 100 | 100 100 100 100 100 Level 1 . | . . . . . Level 2 . | . . . . . Level 3 . | . . . . . Level 4 . | . . . . . Level 5 . | . . . . . High Security . | . . . . . Max Security . | . . . . . Peak Influence 135 | . 95 . 135 110 Initial 26 | . . . . 26 Average 39 | . 32 . 73 47 Influence Increases 667 | . 215 . 272 180 Destroy 0b10 Robot/C 440 | . 160 . 200 80 Destroy 0b10 Robot/NC 15 | . . . 5 10 Destroy Leader 104 | . 40 . 52 12 Disable Machine 45 | . . . . 45 Destroy Structure 33 | . . . . 33 Lose Combat Pursuer 30 | . 15 . 15 . Influence Decreases 667 | . 215 . 210 242 Entered New Map 36 | . . . . 36 Time Decay 491 | . 215 . 170 106 Lost Part 110 | . . . 40 70 Lost Ally 30 | . . . . 30 Squads Dispatched 6 | . 2 . 2 2 Investigation 2 | . . . 1 1 Extermination . | . . . . . Reinforcement 4 | . 2 . 1 1 Assault . | . . . . . Garrison . | . . . . . Intercept . | . . . . . Searches Triggered . | . . . . . Construction Impeded 1 | . . . . 1 Haulers Reinforced . | . . . . . Active Scanning Responses . | . . . . . Cargo Convoy Interrupts . | . . . . . Stealth | -11 -10 -10 -9 -9 --------- Run | Yrd Mat Min Mat Sto Distress Signals 1 | . . . 1 . Communications Jammed . | . . . . . Distress Signals . | . . . . . Times Spotted 42 | . 14 . 15 13 Peak Tracking Total 7 | . 3 . 6 7 Tactical Retreats 2 | . 1 . 1 . Traps | -11 -10 -10 -9 -9 ------- Run | Yrd Mat Min Mat Sto Traps Triggered 1 | . 1 . . . Indirectly . | . . . . . Trap Hack Attempts . | . . . . . Triggered . | . . . . . Disarmed . | . . . . . Reprogrammed . | . . . . . Reused . | . . . . . Traps Extracted . | . . . . . Installed . | . . . . . Triggered . | . . . . . Machines | -11 -10 -10 -9 -9 ---------- Run | Yrd Mat Min Mat Sto Machines Disabled 3 | . . . . 3 Max in Single Turn 1 | . . . . 1 Machines Repaired . | . . . . . Machines Dismantled . | . . . . . Machines Sabotaged . | . . . . . Overloaded Fab Kills . | . . . . . Hacking | -11 -10 -10 -9 -9 --------- Run | Yrd Mat Min Mat Sto Machines Accessed 3 | . 1 . . 2 Terminals 2 | . 1 . . 1 Fabricators . | . . . . . Repair Stations 1 | . . . . 1 Recycling Units . | . . . . . Scanalyzers . | . . . . . Garrison Access . | . . . . . Total Hacks 6 | . 2 . . 4 Successful 4 | . 1 . . 3 Failed 2 | . 1 . . 1 Catastrophic . | . . . . . Database Lockouts . | . . . . . Manual . | . . . . . Terminals 3 | . 2 . . 1 Fabricators . | . . . . . Repair Stations 3 | . . . . 3 Recycling Units . | . . . . . Scanalyzers . | . . . . . Garrison Access . | . . . . . Terminal Hacks 2 | . 1 . . 1 Open Door 1 | . . . . 1 Alert Level 1 | . 1 . . . Fabricator Hacks . | . . . . . Repair Station Hacks 2 | . . . . 2 Scan Component 1 | . . . . 1 Repair 1 | . . . . 1 Recycling Unit Hacks . | . . . . . Scanalyzer . | . . . . . Garrison Access Hacks . | . . . . . Unauthorized Hacks . | . . . . . Terminals . | . . . . . Fabricators . | . . . . . Repair Stations . | . . . . . Recycling Units . | . . . . . Scanalyzers . | . . . . . Garrison Access . | . . . . . Data Cores Recovered . | . . . . . Used . | . . . . . Hacking Detections 1 | . . . . 1 Full Trace Events 1 | . . . . 1 Feedback Events . | . . . . . Feedback Blocked . | . . . . . Robot Schematics Acquired . | . . . . . Robots Built . | . . . . . Authchips . | . . . . . Time . | . . . . . Total Robot Build Rating . | . . . . . Part Schematics Acquired . | . . . . . Parts Built . | . . . . . Authchips . | . . . . . Time . | . . . . . Total Part Build Rating . | . . . . . Parts Repaired 1 | . . . . 1 Time 26 | . . . . 26 Parts Recycled . | . . . . . Recycled Matter . | . . . . . Retrieved Matter . | . . . . . Retrieved Components . | . . . . . Parts Scanalyzed . | . . . . . Part Schematics Acquired . | . . . . . Parts Damaged . | . . . . . Bothacking | -11 -10 -10 -9 -9 ------------ Run | Yrd Mat Min Mat Sto Used RIF Installer . | . . . . . Robots Hacked . | . . . . . Non-combat . | . . . . . Combat . | . . . . . Robot Hacks Applied . | . . . . . Relay Couplers Released . | . . . . . Fabnet Peak Effective % . | . . . . . Robots Rewired . | . . . . . Allies Hacked . | . . . . . Hacks Repelled . | . . . . . Allies | -11 -10 -10 -9 -9 -------- Run | Yrd Mat Min Mat Sto Total Allies . | . . . . . Largest Group . | . . . . . Highest-Rated Group . | . . . . . Highest-Rated Ally . | . . . . . Total Orders . | . . . . . Ally Attacks . | . . . . . Total Damage . | . . . . . Kills . | . . . . . Allies Corrupted . | . . . . . Allies Melted . | . . . . . Intel | -11 -10 -10 -9 -9 ------- Run | Yrd Mat Min Mat Sto Active Infowar (turns) . | . . . . . Robot Analysis Total . | . . . . . Derelict Logs Recovered . | . . . . . Drone Launches 4 | . . . . 4 Drone Recoveries 1 | . . . . 1 Exploration | -11 -10 -10 -9 -9 ------------- Run | Yrd Mat Min Mat Sto Turns Passed 1389 | 93 521 177 364 234 Spaces Moved 919 | 55 365 197 180 122 Core 22 | 4 . . . 18 Treads 264 | 51 127 . 86 . Legs . | . . . . . Wheels 624 | . 238 197 94 95 Hover 9 | . . . . 9 Flight . | . . . . . Fastest Speed 50 | 50 80 90 90 50 Average Speed 113 | 152 110 90 125 128 Slowest Speed 300 | 160 160 90 160 300 Overloaded Moves . | . . . . . Propulsion Burnouts . | . . . . . Robots Hopped . | . . . . . Potential Cave-ins . | . . . . . Cave-ins Triggered . | . . . . . Exploration Rate (%) 28 | 6 47 57 17 14 Regions Visited 4 Branch Regions 2 Pre-discovered Areas . | . . . . . Known Exits Taken . | . . . . . Unknown Exits Taken 4 | 1 1 1 1 . Scrap Searched . | . . . . . Spaces Dug . | . . . . . Terrain Destroyed 32 | . . . . 32 Melee . | . . . . . Projectile . | . . . . . AOE 32 | . . . . 32 Terrain Rammed . | . . . . . Walls Destroyed . | . . . . . Machines Disabled . | . . . . . Actions | -11 -10 -10 -9 -9 --------- Run | Yrd Mat Min Mat Sto Total 1160 | 65 442 196 273 184 Wait 77 | . 10 . 34 33 Move 915 | 54 364 196 179 122 Hop . | . . . . . Pick Up 38 | 6 14 . 11 7 Fast Attach 5 | . 4 . 1 . Attach 23 | 5 7 . 6 5 Detach . | . . . . . Swap 7 | . 3 . 2 2 Drop 25 | . 12 . 8 5 Fire 67 | . 28 . 31 8 Melee . | . . . . . Ram 2 | . . . . 2 Kick . | . . . . . Crush 1 | . . . 1 . Escape Stasis . | . . . . . Rewire . | . . . . . Trap . | . . . . . Miscellaneous . | . . . . . Route ------- -11/Scrapyard -10/Materials -10/Mines -9/Materials -9/Storage History --------- Turn | Location | Event 20 | -11/Scrapyard | Discovered new exit (range 15) 94 | -11/Scrapyard | Entered Materials 326 | -10/Materials | Build established: Mutant 600 | -10/Materials | Discovered new exit (range 8) 615 | -10/Materials | Entered Mines 619 | -10/Mines | Met a Derelict bent on vengeance 784 | -10/Mines | Discovered new exit (range 12) 792 | -10/Mines | Entered Materials 792 | -9/Materials | Evolved 2 slots: Propulsion x1, Utility x1 807 | -9/Materials | Discovered new exit (range 11) 1156 | -9/Materials | Entered Storage 1290 | -9/Storage | Repaired Heat Sink 1383 | -9/Storage | Core integrity fell below 50% 1390 | -9/Storage | Self-destructed Last Messages --------------- The unstable cave ceiling collapses. U-05 Engineer lays Concrete. G-34 Mercenary suffers critical hit (Destroy). G-34 Mercenary destroyed. U-05 Engineer lays Concrete. S-10 Pest destroyed. U-05 Engineer lays Concrete. S-10 Pest destroyed. Drone destroyed. U-05 Engineer builds a Wall. U-05 Engineer lays Concrete. Slammed into M-13 Machinist. U-05 Engineer lays Concrete. Drone destroyed. U-05 Engineer builds a Door. U-05 Engineer builds a Wall. Slammed into U-05 Engineer. Hvy. Ion Engine destroyed. ALERT: Construction progress impeded, dispatching reinforcements to local area. Map ----- +----------------------------------------------------+ | ???????????????????????????????????????????????? | | ???????????????????????????????????????????????? | | ???????????????????????????????????????????????? | | ???????????????????????????????????????????????? | | ???????????????????????????????????????????????? | | ???????????????????????????????????????????????? | | ???????????????????????????????????????????????? | | ??????????????????????????? ???????????????????? | | ??????????????????####?# ?? "??????????????????? | | ?????????????????? ??? ?????????????????? | | ?????????????????""" ???? ????????????????? | | ????????????????#""" #####+#########???????? | | ????????????????#""" # #???????? | | ????????????????? / #???????? | | ?????????????????""" ! # #???????? | | ?????????????????""" % # """ % #???????? | | ?????????????????""" # """ #???????? | | ??????????????????? #m """ %/ #???????? | | ???????????????########### % / #???????? | | ???????????????# =%* / ##??????? | | ???????????????# """ "" #??????? | | ???????????????# """ " g #####???? | | ???????????????# """ """ s=% % # ##??? | | ???????????????# =su ###### T#??? | | ???????????????###" "### #??# = ## ##??? | | ?????????????????#"R"#?##@ + ###?# #* !#??? | | ?????????????????#"""#?# #?## ## !!#??? | | ?????????????????#####?#" #??# ## !!#??? | | ???????????????????????#""" #??# ##! !#??? | | ???????????????????????#""" ##?# ######??? | | ???????????????????????# Y #?# #???????? | | ???????????????????????#" " ##?# #???????? | | ???????????????????????#" #??#####???????? | | ???????????????????????#" #??????????????? | | ???????????????????????# #??????????????? | | ???????????????????????# ## ##??????????????? | | ???????????????????????####### #???????????????? | | | | | | | | | | | | | | | | | | | | | | | | | | | +----------------------------------------------------+ Best States ------------- Heat Dissipation 48 Coolant Potential 50 Energy Generation 14 Energy Capacity 280 Matter Stores 300 Matter Capacity 300 Sight Range 16 Terrain Scan Density 10 Armor Coverage 150 Propulsion Shielding 33 Evasion (%) 50 Targeting Accuracy 5 Recoil Reduction 2 Item Schematics ----------------- None Robot Schematics ------------------ None Fabricated ------------ Nothing Repaired ---------- Heat Sink | 40% | -9/Storage Alien Tech Used ----------------- None Achievements -------------- None Challenges ------------ None Game ------ Seed NodeConceptFlamer Manual? 0 Play Time 00:19:17 Cumulative 3.8 hours Start 2025.09.03 @ 17:14:01 End 2025.09.03 @ 17:30:30 Sessions 1 Manual Loads 0 Difficulty Rogue Special Mode None Game No. 9 Rogue 9 Adventurer 0 Explorer 0 Win Type - Total 0 Types 0/0/0/0/0/0/0/0/0/0 Lore% 0 Gallery% 8 Achievement% 7 Wizard Run 0 Options --------- Layout 1 ASCII 0 Keyboard 0 Movement Mouse Keybinds 0 Fullscreen 1 Font 32/SmallcapsGlow Map View 50x35 Zoom Use 0% Tactical HUD 0 Map Filters NONE Filters NONE Steam 1 RUN: 0c98fb38-29e0-4c4f-b54b-9ed6b04d2c68